bitfinex/quotes_SOLUSD_20250529
["timestamp","ask_amount","ask_price","bid_price","bid_amount"]
[1748545305465,43.45415302,167.95,167.94,45.27883407]
[1748545305635,41.42410114,167.95,167.94,45.27883407]
[1748545305825,78.92410114,167.95,167.94,45.27883407]
[1748545307337,41.42410114,167.95,167.94,45.27883407]
[1748545307531,78.92410114,167.95,167.94,45.27883407]
[1748545307765,43.45415302,167.95,167.94,45.27883407]
[1748545307937,5.95415302,167.95,167.94,99.39843105]
[1748545308262,43.47415302,167.95,167.94,99.39843105]
[1748545309350,14.8806643,168.01,167.95,18.64964886]
[1748545309535,37.5,168.0,167.96,35.46994812]
[1748545309732,35.46994812,168.01,167.96,35.46994812]
[1748545309945,37.52,168.0,167.96,35.46994812]
[1748545310664,72.98994812,168.0,167.95,54.11959698]
[1748545310841,37.5,167.99,167.95,54.11959698]
[1748545311242,37.5,167.99,167.96,35.46994812]
[1748545311866,5.95308965,167.98,167.96,35.46994812]
[1748545312052,37.5,167.97,167.96,54.11959698]
[1748545312258,37.48,167.97,167.96,54.11959698]
[1748545313967,43.43344406,167.97,167.96,18.64964886]
[1748545316250,43.43344406,167.97,167.96,54.11959698]
[1748545316873,5.95344406,167.97,167.96,18.64964886]
[1748545317053,43.39344406,167.97,167.96,54.11959698]
[1748545317255,58.27705422,167.97,167.94,45.27883407]
[1748545317445,58.27705422,167.97,167.95,18.64964886]
[1748545317649,43.39344406,167.97,167.95,54.11959698]
[1748545318372,58.27705422,167.97,167.94,45.27883407]
[1748545318579,58.27705422,167.97,167.94,80.74878219]
[1748545319555,58.27705422,167.97,167.94,45.27883407]
[1748545319750,58.27705422,167.97,167.95,35.46994812]
[1748545320075,43.39344406,167.97,167.96,54.11959698]
[1748545320373,37.5,167.97,167.96,54.11959698]
[1748545321775,37.5,167.97,167.96,18.64964886]
[1748545322259,43.45344406,167.97,167.96,18.64964886]
[1748545322748,5.95344406,167.97,167.96,40.39617032]
[1748545322953,20.83036417,168.03,167.96,40.39617032]
[1748545323180,21.74652146,168.02,167.95,18.64964886]
[1748545323380,37.48,168.01,167.95,18.64964886]
[1748545323563,21.74652146,168.0,167.95,40.39617032]
[1748545323752,37.46,167.99,167.95,40.39617032]
[1748545324088,37.46,167.99,167.95,18.64964886]
[1748545324291,5.95308965,167.98,167.96,21.74652146]
[1748545324574,37.46,167.97,167.95,18.64964886]
[1748545325086,5.95096405,168.04,167.98,6.2842]
[1748545325258,37.46,168.03,167.98,16.3442]
[1748545325454,5.95096405,168.04,168.0,18.64964886]
[1748545325685,5.94990182,168.07,168.04,18.64964886]
[1748545325855,5.94990182,168.07,168.06,21.74652146]
[1748545326053,5.94990182,168.07,168.06,40.39617032]
[1748545326350,14.87188384,168.11,168.06,40.39617032]
[1748545326351,37.62,168.09,168.06,6.5949]
[1748545326557,37.62,168.09,168.05,40.39617032]
[1748545326558,59.36652146,168.09,168.05,40.39617032]
[1748545326775,37.62,168.09,168.06,21.74652146]
[1748545327004,37.62,168.09,168.07,21.74652146]
[1748545327166,37.62,168.09,168.08,21.74652146]
[1748545327361,37.62,168.09,168.07,21.74652146]
[1748545328578,5.94954783,168.08,168.07,40.39617032]
[1748545329194,5.94954783,168.08,168.05,21.74652146]
[1748545329195,20.82341741,168.08,168.05,21.74652146]
[1748545329395,37.6,168.07,168.05,21.74652146]
[1748545329902,37.6,168.07,168.06,21.74652146]
[1748545330404,5.95025586,168.06,168.05,40.39617032]
[1748545333523,5.95025586,168.06,167.99,0.28432314]
[1748545333524,42.57241697,168.06,168.0,18.64964886]
[1748545333797,42.57241697,168.06,167.97,6.6547]
[1748545333798,37.58,168.05,167.97,28.40122146]
[1748545333993,21.74652146,168.02,167.97,28.40122146]
[1748545334197,58.41209332,168.01,167.97,28.40122146]
[1748545334397,58.41209332,168.01,167.98,40.39617032]
[1748545334598,58.41209332,168.01,167.98,18.64964886]
[1748545336395,80.15861478,168.01,167.98,18.64964886]
[1748545336789,21.74652146,168.0,167.97,6.6547]
[1748545336991,37.56,167.99,167.95,21.74652146]
[1748545337507,37.56,167.99,167.96,40.39617032]
[1748545338311,5.95308965,167.98,167.96,40.39617032]
[1748545338804,5.95308965,167.98,167.97,40.39617032]
[1748545339392,5.95308965,167.98,167.96,21.74652146]
[1748545339598,5.95308965,167.98,167.95,40.39617032]
[1748545339798,5.95308965,167.98,167.96,21.74652146]
[1748545340609,5.95308965,167.98,167.95,40.39617032]
[1748545340610,20.83581378,167.98,167.95,40.39617032]
[1748545341293,58.43581378,167.98,167.95,40.39617032]
[1748545341497,58.43581378,167.98,167.96,21.74652146]
[1748545342325,58.43581378,167.98,167.95,18.64964886]
[1748545343397,58.43581378,167.98,167.95,40.39617032]
[1748545345588,58.43581378,167.98,167.96,21.74652146]
[1748545345791,5.95167241,168.02,167.98,18.64964886]
[1748545346019,5.95167241,168.02,168.01,40.39617032]
[1748545346212,43.53167241,168.02,168.01,40.39617032]
[1748545346390,80.15737491,168.02,167.96,18.64964886]
[1748545346590,21.74652146,168.0,167.96,18.64964886]
[1748545346814,37.58,167.99,167.96,40.39617032]
[1748545347200,37.58,167.99,167.97,21.74652146]
[1748545347918,37.58,167.99,167.98,40.39617032]
[1748545348929,43.53273528,167.99,167.98,40.39617032]
[1748545349795,5.95273528,167.99,167.98,40.39617032]
[1748545349995,5.95202666,168.01,167.99,18.64964886]
[1748545350301,43.49096405,168.04,168.01,18.64964886]
[1748545350528,58.36837419,168.04,168.01,40.39617032]
[1748545350700,58.36837419,168.04,168.02,18.64964886]
[1748545351019,58.36837419,168.04,168.03,21.74652146]
[1748545351401,20.82837419,168.04,168.03,21.74652146]
[1748545351602,58.36837419,168.04,168.03,21.74652146]
[1748545352023,5.94883997,168.1,168.04,18.64964886]
[1748545352322,5.94883997,168.1,168.05,21.74652146]
[1748545352323,37.54,168.09,168.05,21.74652146]
[1748545352627,37.54,168.08,168.05,21.74652146]
[1748545352920,5.94990182,168.07,168.03,18.64964886]
[1748545353128,5.94990182,168.07,168.05,21.74652146]
[1748545353911,5.94990182,168.07,168.06,21.74652146]
[1748545354132,43.48990182,168.07,168.06,21.74652146]
[1748545354804,5.94990182,168.07,168.06,40.39617032]
[1748545355806,5.94990182,168.07,167.97,2.9784]
[1748545356011,26.0,168.04,167.97,2.9784]
[1748545356309,21.74652146,168.02,167.98,18.64964886]
[1748545356514,38.98,168.01,167.98,40.39617032]
[1748545356806,38.98,168.0,167.98,40.39617032]
[1748545357008,5.95273528,167.99,167.98,40.39617032]
[1748545358119,5.95273528,167.99,167.98,18.64964886]
[1748545358828,5.95273528,167.99,167.98,40.39617032]
[1748545359029,38.96,168.02,167.99,18.64964886]
[1748545359730,38.98,168.01,167.99,18.64964886]
[1748545360614,38.98,168.01,167.96,18.64964886]
[1748545360806,38.98,168.01,167.97,21.74652146]
[1748545360998,5.95238095,168.0,167.97,21.74652146]
[1748545363826,44.93211441,168.01,168.0,18.64964886]
[1748545364132,5.95211441,168.01,168.0,40.39617032]
[1748545364337,44.85175088,168.02,168.0,40.39617032]
[1748545364542,5.95175088,168.02,168.0,40.39617032]
[1748545364708,38.88,168.04,168.02,18.64964886]
[1748545364915,5.95060993,168.05,168.02,18.64964886]
[1748545365218,38.88,168.04,168.02,18.64964886]
[1748545365613,44.81060993,168.05,168.02,18.64964886]
[1748545366015,44.81060993,168.05,168.03,18.64964886]
[1748545366425,5.95060993,168.05,168.03,40.39617032]
[1748545366815,5.95060993,168.05,168.02,6.2647]
[1748545367331,5.95060993,168.05,168.03,21.74652146]
[1748545367550,5.95060993,168.05,168.04,18.64964886]
[1748545367840,5.95060993,168.05,168.02,28.01122146]
[1748545368011,5.95060993,168.05,168.03,18.64964886]
[1748545368918,38.84,168.06,168.03,18.64964886]
[1748545370154,5.95060993,168.05,168.03,18.64964886]
[1748545370444,5.95060993,168.05,168.03,40.39617032]
[1748545371628,5.95060993,168.05,168.04,21.74652146]
[1748545371831,5.95060993,168.05,168.04,40.39617032]
[1748545374054,5.95025586,168.06,168.05,18.64964886]
[1748545375324,59.50495061,168.07,168.03,18.64964886]
[1748545375542,59.50495061,168.07,168.05,18.64964886]
[1748545375752,20.82495061,168.07,168.05,18.64964886]
[1748545375954,38.66,168.06,168.05,21.74652146]
[1748545376130,38.66,168.06,168.05,40.39617032]
[1748545376333,5.94990182,168.07,168.06,18.64964886]
[1748545376554,42.57117784,168.07,168.02,6.2647]
[1748545376853,21.74652146,168.05,168.03,18.64964886]
[1748545377026,38.66,168.04,168.01,18.64964886]
[1748545377439,5.95131821,168.03,168.02,40.39617032]
[1748545377948,5.95131821,168.03,168.02,18.64964886]
[1748545381251,42.57613521,168.03,167.96,28.9394]
[1748545381551,21.74652146,168.01,167.97,18.64964886]
[1748545381735,38.58,168.0,167.97,40.39617032]
[1748545382122,5.95273528,167.99,167.98,21.74652146]
[1748545382856,5.95273528,167.99,167.98,40.39617032]
[1748545383754,5.95167241,168.02,167.98,40.39617032]
[1748545383957,38.54,168.01,167.94,51.63173407]
[1748545384164,38.54,168.01,167.95,18.64964886]
[1748545384165,27.69961111,167.98,167.95,18.64964886]
[1748545384333,66.25961111,167.98,167.95,18.64964886]
[1748545384540,44.51308965,167.98,167.97,18.64964886]
[1748545384730,44.51308965,167.98,167.97,40.39617032]
[1748545384930,5.95308965,167.98,167.97,40.39617032]
[1748545385349,5.95308965,167.98,167.97,18.64964886]
[1748545386442,5.95308965,167.98,167.95,32.56652146]
[1748545386443,27.69961111,167.98,167.96,18.64964886]
[1748545386649,38.56,167.97,167.96,18.64964886]
[1748545387841,38.56,167.97,167.96,40.39617032]
[1748545388453,44.51344406,167.97,167.95,32.56652146]
[1748545388849,44.51344406,167.97,167.96,18.64964886]
[1748545395353,44.51344406,167.97,167.96,40.39617032]
[1748545395754,5.95344406,167.97,167.96,40.39617032]
[1748545396156,5.95308965,167.98,167.96,40.39617032]
[1748545396468,5.95308965,167.98,167.97,18.64964886]
[1748545397171,20.83581378,167.98,167.95,29.46964886]
[1748545397355,20.83581378,167.98,167.96,18.64964886]
[1748545397563,5.95308965,167.98,167.96,40.39617032]
[1748545398475,5.95308965,167.98,167.95,32.56652146]
[1748545399186,5.95308965,167.98,167.96,18.64964886]
[1748545400171,5.95308965,167.98,167.96,21.74652146]
[1748545400362,5.95308965,167.98,167.97,18.64964886]
[1748545400677,42.58233524,167.98,167.96,18.64964886]
[1748545401052,20.83581378,167.98,167.96,18.64964886]
[1748545402979,5.95308965,167.98,167.97,18.64964886]
[1748545404079,5.95308965,167.98,167.95,29.46964886]
[1748545404378,5.95308965,167.98,167.97,18.64964886]
[1748545405966,5.95308965,167.98,167.97,40.39617032]
[1748545406478,5.95308965,167.98,167.97,18.64964886]
[1748545407180,5.92928965,167.98,167.97,18.64964886]
[1748545407381,14.88063251,168.01,167.97,40.39617032]
[1748545407682,38.2,168.02,168.01,18.64964886]
[1748545408101,5.95131821,168.03,168.01,18.64964886]
[1748545408387,5.95025586,168.06,168.02,47.04957032]
[1748545408677,44.17025586,168.06,168.05,40.39617032]
[1748545409375,5.95025586,168.06,168.05,40.39617032]
[1748545411397,38.16,168.08,168.05,40.39617032]
[1748545411398,5.94980944,168.08,168.06,18.64964886]
[1748545411598,5.94980944,168.08,168.07,40.39617032]
[1748545411979,5.94932581,168.09,168.07,40.39617032]
[1748545412167,5.94932581,168.09,168.08,21.74652146]
[1748545412371,5.94813228,168.12,168.08,40.39617032]
[1748545412605,5.94813228,168.12,168.07,29.34964886]
[1748545412606,5.94813228,168.12,168.11,21.74652146]
[1748545413368,14.86710259,168.16,168.12,18.64964886]
[1748545413369,38.14,168.15,168.12,18.64964886]
[1748545413573,38.14,168.15,168.13,21.74652146]
[1748545413798,14.86710259,168.16,168.13,21.74652146]
[1748545413986,38.12,168.15,168.13,21.74652146]
[1748545415598,5.94742476,168.14,168.13,21.74652146]
[1748545417906,14.86710259,168.16,168.13,21.74652146]
[1748545418107,14.86710259,168.16,168.14,18.64964886]
[1748545418291,43.96636379,168.17,168.15,40.39617032]
[1748545418608,43.96636379,168.17,168.16,21.74652146]
[1748545420405,5.94636379,168.17,168.16,21.74652146]
[1748545421307,5.94636379,168.17,168.15,18.64964886]
[1748545421496,5.94636379,168.17,168.16,21.74652146]
[1748545422509,5.94636379,168.17,168.15,40.39617032]
[1748545422805,5.94636379,168.17,168.15,18.64964886]
[1748545423114,5.94636379,168.17,168.16,21.74652146]
[1748545424007,5.94494976,168.21,168.16,40.39617032]
[1748545424310,37.94,168.2,168.16,18.64964886]
[1748545424497,5.94565669,168.19,168.16,18.64964886]
[1748545424693,52.80221793,168.22,168.17,25.11674886]
[1748545425008,5.94494976,168.21,168.17,25.11674886]
[1748545425502,5.94494976,168.21,168.2,40.39617032]
[1748545425884,5.94494976,168.21,168.19,21.74652146]
[1748545426198,5.94494976,168.21,168.18,18.64964886]
[1748545426398,5.94494976,168.21,168.2,21.74652146]
[1748545426598,14.86151185,168.22,168.2,21.74652146]
[1748545433299,20.80610821,168.22,168.18,18.64964886]
[1748545433620,20.80610821,168.22,168.19,21.74652146]
[1748545434193,20.80610821,168.22,168.2,21.74652146]
[1748545434710,5.94459636,168.22,168.2,21.74652146]
[1748545435723,5.94459636,168.22,168.19,18.64964886]
[1748545436039,5.94459636,168.22,168.2,21.74652146]
[1748545438230,20.80608726,168.22,168.18,18.64964886]
[1748545438399,20.80608726,168.22,168.19,21.74652146]
[1748545438599,20.80608726,168.22,168.2,21.74652146]
[1748545440732,5.94459636,168.22,168.21,21.74652146]
[1748545442604,5.944243,168.23,168.21,21.74652146]
[1748545442826,5.944243,168.23,168.22,21.74652146]
[1748545444230,5.9435364,168.25,168.22,21.74652146]
[1748545444433,43.5635364,168.25,168.24,21.74652146]
[1748545444808,5.9435364,168.25,168.24,21.74652146]
[1748545446027,20.79914875,168.28,168.24,21.74652146]
[1748545446228,37.6,168.27,168.24,21.74652146]
[1748545447226,21.74652146,168.26,168.21,18.64964886]
[1748545447531,21.74652146,168.26,168.22,21.74652146]
[1748545447833,37.58,168.25,168.22,21.74652146]
[1748545448614,5.94388968,168.24,168.22,21.74652146]
[1748545449420,69.63520449,168.23,168.1,2.7856]
[1748545449737,21.74652146,168.17,168.13,21.74652146]
[1748545449917,37.54,168.16,168.13,21.74652146]
[1748545450122,37.54,168.16,168.12,21.74652146]
[1748545450634,5.94707106,168.15,168.13,21.74652146]
[1748545450942,20.81474872,168.15,168.12,21.74652146]
[1748545452937,20.81474872,168.15,168.11,18.64964886]
[1748545452938,20.81474872,168.15,168.13,21.74652146]
[1748545453118,20.81474872,168.15,168.12,21.74652146]
[1748545455725,5.94707106,168.15,168.12,21.74652146]
[1748545455922,5.94707106,168.15,168.13,21.74652146]
[1748545456144,43.48681049,168.16,168.13,21.74652146]
[1748545456339,11.6,168.2,168.11,18.64964886]
[1748545456340,5.94565669,168.19,168.14,21.74652146]
[1748545456526,27.69217815,168.19,168.15,21.74652146]
[1748545456738,65.15217815,168.19,168.15,21.74652146]
[1748545457041,11.6,168.2,168.16,21.74652146]
[1748545457241,5.944243,168.23,168.19,21.74652146]
[1748545457547,37.46,168.22,168.19,21.74652146]
[1748545457736,5.944243,168.23,168.2,21.74652146]
[1748545457936,43.384243,168.23,168.2,21.74652146]
[1748545458520,5.944243,168.23,168.21,21.74652146]
[1748545458954,36.60547374,168.25,168.22,21.74652146]
[1748545458955,5.9435364,168.25,168.22,21.74652146]
[1748545459247,5.9435364,168.25,168.23,21.74652146]
[1748545459827,5.9435364,168.25,168.22,21.74652146]
[1748545461853,5.9435364,168.25,168.21,40.39617032]
[1748545462837,5.9435364,168.25,168.22,21.74652146]
[1748545463357,20.80128677,168.26,168.22,21.74652146]
[1748545463532,37.38,168.25,168.22,21.74652146]
[1748545463938,20.80128677,168.26,168.23,21.74652146]
[1748545464140,58.16128677,168.26,168.23,21.74652146]
[1748545464535,43.30318316,168.26,168.24,21.74652146]
[1748545465041,5.94318316,168.26,168.24,21.74652146]
[1748545465354,5.94282997,168.27,168.24,21.74652146]
[1748545465545,43.30282997,168.27,168.24,21.74652146]
[1748545465747,5.94282997,168.27,168.24,21.74652146]
[1748545466055,43.28282997,168.27,168.24,21.74652146]
[1748545466250,43.28282997,168.27,168.21,18.64964886]
[1748545466251,5.94282997,168.27,168.25,21.74652146]
[1748545466428,5.94282997,168.27,168.21,18.64964886]
[1748545466429,5.94282997,168.27,168.24,21.74652146]
[1748545467353,5.94247682,168.28,168.24,21.74652146]
[1748545467554,43.28247682,168.28,168.24,21.74652146]
[1748545468351,5.94177064,168.3,168.27,21.74652146]
[1748545468651,5.94177064,168.3,168.29,21.74652146]
[1748545469475,5.94141762,168.31,168.29,21.74652146]
[1748545469836,5.94141762,168.31,168.3,21.74652146]
[1748545471278,5.94141762,168.31,168.3,40.39617032]
[1748545471557,14.85066687,168.35,168.3,40.39617032]
[1748545471558,5.94071169,168.33,168.3,40.39617032]
[1748545471743,5.94071169,168.33,168.31,21.74652146]
[1748545472367,5.94071169,168.33,168.3,18.64964886]
[1748545472563,5.94071169,168.33,168.31,21.74652146]
[1748545473633,5.94071169,168.33,168.3,21.74652146]
[1748545473634,20.79249093,168.33,168.3,21.74652146]
[1748545473853,20.79249093,168.33,168.29,21.74652146]
[1748545474363,20.79249093,168.33,168.3,21.74652146]
[1748545474560,20.79249093,168.33,168.27,18.64964886]
[1748545474766,58.03249093,168.33,168.3,21.74652146]
[1748545474985,87.73604941,168.33,168.24,6.14]
[1748545475162,87.73604941,168.33,168.26,21.74652146]
[1748545475338,21.74652146,168.31,168.26,21.74652146]
[1748545475743,20.79619725,168.3,168.26,21.74652146]
[1748545476153,20.79619725,168.3,168.27,21.74652146]
[1748545476478,20.79619725,168.3,168.26,21.74652146]
[1748545477873,36.60094807,168.3,168.24,50.78964886]
[1748545478171,58.96652146,168.29,168.24,72.53617032]
[1748545479480,21.74652146,168.27,168.24,24.78964886]
[1748545479664,21.74652146,168.25,168.21,34.50292146]
[1748545479969,5.94388968,168.24,168.21,34.50292146]
[1748545480191,20.80361388,168.24,168.21,34.50292146]
[1748545480361,20.80361388,168.24,168.21,12.7564]
[1748545480553,20.80361388,168.24,168.21,34.50292146]
[1748545481276,42.55013534,168.24,168.21,12.7564]
[1748545482372,21.74652146,168.23,168.21,10.12]
[1748545482562,20.80361388,168.24,168.21,10.12]
[1748545482563,21.74652146,168.22,168.21,10.12]
[1748545484251,20.80732417,168.21,168.13,18.64964886]
[1748545484560,21.74652146,168.16,168.13,44.64964886]
[1748545484769,21.74652146,168.17,168.13,44.64964886]
[1748545485270,37.2,168.2,168.13,66.39617032]
[1748545485597,21.74652146,168.18,168.14,21.74652146]
[1748545486089,21.74652146,168.19,168.15,18.64964886]
[1748545486258,5.94601022,168.18,168.16,18.64964886]
[1748545487991,5.94601022,168.18,168.14,18.64964886]
[1748545488186,5.94601022,168.18,168.16,18.64964886]
[1748545488869,5.94601022,168.18,168.14,40.39617032]
[1748545489570,5.94601022,168.18,168.16,18.64964886]
[1748545490796,21.74652146,168.17,168.14,18.64964886]
[1748545490968,21.74652146,168.16,168.12,16.3257]
[1748545491290,21.74652146,168.16,168.13,18.64964886]
[1748545491493,58.96652146,168.17,168.13,18.64964886]
[1748545492293,21.74652146,168.16,168.13,18.64964886]
[1748545492863,5.94707106,168.15,168.13,18.64964886]
[1748545494910,5.94671741,168.16,168.13,18.64964886]
[1748545495077,27.69323887,168.16,168.13,18.64964886]
[1748545498909,5.94671741,168.16,168.13,18.64964886]
[1748545500591,27.69323887,168.16,168.13,18.64964886]
[1748545502382,5.94671741,168.16,168.13,18.64964886]
[1748545502890,5.94671741,168.16,168.13,40.39617032]
[1748545503089,5.94530321,168.2,168.16,18.64964886]
[1748545503417,5.94459636,168.22,168.19,18.64964886]
[1748545503592,5.94459636,168.22,168.19,40.39617032]
[1748545503798,43.16459636,168.22,168.19,40.39617032]
[1748545507025,64.91111782,168.22,168.18,21.74652146]
[1748545507218,43.16459636,168.22,168.19,18.64964886]
[1748545507409,27.69111782,168.22,168.15,24.59668267]
[1748545507596,64.91111782,168.22,168.19,18.64964886]
[1748545507914,21.74652146,168.2,168.16,18.64964886]
[1748545508346,5.94106463,168.32,168.22,18.64964886]
[1748545508496,58.96652146,168.31,168.26,21.74652146]
[1748545508806,21.74652146,168.3,168.25,21.74652146]
[1748545509698,21.74652146,168.3,168.26,21.74652146]
[1748545509699,5.94177064,168.3,168.26,21.74652146]
[1748545510600,37.22,168.29,168.26,21.74652146]
[1748545511011,5.94247682,168.28,168.26,21.74652146]
[1748545512100,5.94247682,168.28,168.23,24.66354886]
[1748545512101,20.79866888,168.28,168.24,21.74652146]
[1748545513596,20.79866888,168.28,168.25,21.74652146]
[1748545514226,20.79866888,168.28,168.24,21.74652146]
[1748545514798,20.79866888,168.28,168.23,6.0139]
[1748545515123,20.79866888,168.28,168.23,27.76042146]
[1748545515429,42.54519034,168.28,168.23,27.76042146]
[1748545515995,42.54519034,168.28,168.26,21.74652146]
[1748545515996,5.94247682,168.28,168.26,21.74652146]
[1748545517310,5.94247682,168.28,168.23,24.66354886]
[1748545517505,5.94247682,168.28,168.25,21.74652146]
[1748545517737,57.99767885,168.29,168.25,21.74652146]
[1748545517935,79.74420031,168.29,168.25,21.74652146]
[1748545519401,20.79767885,168.29,168.25,21.74652146]
[1748545519913,42.54420031,168.29,168.25,21.74652146]
[1748545521721,79.74420031,168.29,168.25,21.74652146]
[1748545523011,42.54420031,168.29,168.25,21.74652146]
[1748545523217,79.74420031,168.29,168.25,21.74652146]
[1748545524309,57.99767885,168.29,168.26,21.74652146]
[1748545524831,20.79767885,168.29,168.26,21.74652146]
[1748545525416,20.79767885,168.29,168.23,27.23114886]
[1748545525619,20.79767885,168.29,168.25,21.74652146]
[1748545525836,42.54420031,168.29,168.25,21.74652146]
[1748545526040,21.74652146,168.28,168.23,8.5815]
[1748545526534,21.74652146,168.28,168.24,18.64964886]
[1748545526737,42.54420031,168.29,168.24,40.39617032]
[1748545531111,42.54420031,168.29,168.24,18.64964886]
[1748545531324,20.79767885,168.29,168.26,21.74652146]
[1748545531524,20.79767885,168.29,168.24,18.64964886]
[1748545531525,37.2,168.28,168.24,18.64964886]
[1748545531953,37.2,168.28,168.24,40.39617032]
[1748545533053,20.7999049,168.27,168.24,40.39617032]
[1748545533224,20.7999049,168.27,168.23,30.32802146]
[1748545535616,20.7999049,168.27,168.21,9.9]
[1748545535617,42.54642636,168.27,168.21,9.9]
[1748545535818,21.74652146,168.26,168.21,31.64652146]
[1748545537021,20.80237741,168.25,168.21,31.64652146]
[1748545537516,20.80237741,168.25,168.21,9.9]
[1748545537722,20.80237741,168.25,168.12,27.79322146]
[1748545537723,43.49304292,168.22,168.12,27.79322146]
[1748545537925,21.74652146,168.15,168.12,6.0467]
[1748545538123,21.74652146,168.13,168.12,6.0467]
[1748545538631,21.74652146,168.13,168.11,18.64964886]
[1748545539138,5.94813228,168.12,168.1,35.9]
[1748545539334,5.94813228,168.12,168.11,18.64964886]
[1748545540343,5.94813228,168.12,168.1,35.9]
[1748545540649,27.69465374,168.12,168.1,9.9]
[1748545542123,21.74652146,168.11,168.05,31.64652146]
[1748545542322,21.74652146,168.11,168.06,18.64964886]
[1748545542323,21.74652146,168.09,168.06,18.64964886]
[1748545542625,21.74652146,168.08,168.05,9.9]
[1748545542945,21.74652146,168.07,168.05,9.9]
[1748545543467,27.69677732,168.06,168.05,9.9]
[1748545543749,27.69677732,168.06,168.04,6.4615]
[1748545545733,14.87315305,168.09,168.04,6.4615]
[1748545545935,21.74652146,168.07,168.04,6.4615]
[1748545546128,5.94883997,168.1,168.05,18.64964886]
[1748545546334,5.94883997,168.1,168.08,21.74652146]
[1748545546649,14.87022712,168.13,168.04,38.4124628]
[1748545546650,5.9484314,168.12,168.09,21.74652146]
[1748545547771,5.9484314,168.12,168.08,21.74652146]
[1748545547925,27.69495286,168.12,168.07,21.74652146]
[1748545548347,42.56528357,168.12,168.07,21.74652146]
[1748545549061,5.9484314,168.12,168.08,21.74652146]
[1748545549437,5.9484314,168.12,168.06,9.9]
[1748545549768,5.9484314,168.12,168.08,21.74652146]
[1748545551459,42.56528357,168.12,168.07,21.74652146]
[1748545551755,5.9484314,168.12,168.08,21.74652146]
[1748545552665,5.9484314,168.12,168.09,21.74652146]
[1748545552871,5.9484314,168.12,168.1,21.74652146]
[1748545553171,28.54626157,168.18,168.11,40.39617032]
[1748545553172,5.94601022,168.18,168.11,40.39617032]
[1748545553374,73.83243095,168.17,168.12,21.74652146]
[1748545553571,5.94601022,168.18,168.14,21.74652146]
[1748545553871,5.94601022,168.18,168.17,21.74652146]
[1748545554248,5.94601022,168.18,168.15,21.74652146]
[1748545554451,5.94601022,168.18,168.17,21.74652146]
[1748545555247,37.2,168.21,168.17,21.74652146]
[1748545556050,14.86125057,168.23,168.19,21.74652146]
[1748545556256,52.06125057,168.23,168.19,21.74652146]
[1748545556647,14.86125057,168.23,168.2,21.74652146]
[1748545557146,14.86125057,168.23,168.19,21.74652146]
[1748545557849,42.55201503,168.23,168.19,21.74652146]
[1748545558265,20.80549357,168.23,168.19,21.74652146]
[1748545558481,42.55201503,168.23,168.19,21.74652146]
[1748545560862,20.80549357,168.23,168.2,21.74652146]
[1748545561262,42.55201503,168.23,168.19,21.74652146]
[1748545561778,42.55201503,168.23,168.17,18.64964886]
[1748545562095,20.80549357,168.23,168.19,21.74652146]
[1748545562401,5.944243,168.23,168.2,21.74652146]
[1748545562596,5.944243,168.23,168.22,21.74652146]
[1748545563398,5.944243,168.23,168.21,21.74652146]
[1748545564561,27.69005786,168.25,168.21,21.74652146]
[1748545565178,5.9435364,168.25,168.21,21.74652146]
[1748545566386,42.54889887,168.25,168.21,21.74652146]
[1748545566567,21.74652146,168.22,168.19,6.017]
[1748545566768,21.74652146,168.22,168.18,9.9]
[1748545566979,21.74652146,168.21,168.18,9.9]
[1748545567180,21.74652146,168.2,168.18,9.9]
[1748545567888,21.74652146,168.19,168.18,9.9]
[1748545568066,21.74652146,168.19,168.15,40.39617032]
[1748545568764,27.69253168,168.18,168.14,32.3799]
[1748545568963,42.55755724,168.18,168.14,32.3799]
[1748545569364,42.55755724,168.18,168.14,54.12642146]
[1748545570182,20.81103578,168.18,168.14,54.12642146]
[1748545570794,5.94530321,168.2,168.17,21.74652146]
[1748545570967,5.94530321,168.2,168.16,18.64964886]
[1748545570968,5.94530321,168.2,168.18,40.39617032]
[1748545572876,5.94459636,168.22,168.18,40.39617032]
[1748545573489,27.69111782,168.22,168.18,40.39617032]
[1748545574069,42.55260872,168.22,168.18,18.64964886]
[1748545577295,42.55260872,168.22,168.17,47.74652146]
[1748545577487,21.74652146,168.21,168.17,21.74652146]
[1748545577691,21.74652146,168.21,168.16,47.74652146]
[1748545577885,21.74652146,168.21,168.16,21.74652146]
[1748545578198,21.74652146,168.19,168.15,18.64964886]
[1748545578501,21.74652146,168.18,168.14,32.3799]
[1748545578671,21.74652146,168.18,168.14,6.3799]
[1748545579295,37.18,168.2,168.14,28.12642146]
[1748545579498,5.94601022,168.18,168.14,28.12642146]
[1748545581378,5.94601022,168.18,168.15,21.74652146]
[1748545582702,5.94565669,168.19,168.15,21.74652146]
[1748545583895,42.55631989,168.19,168.15,21.74652146]
[1748545584282,42.55631989,168.19,168.14,28.12642146]
[1748545584485,42.55631989,168.19,168.14,6.3799]
[1748545584486,21.74652146,168.18,168.14,6.3799]